fUSD/lending_fUSD_20260516
["ID","MTS","AMOUNT","RATE_DAILY","PERIOD"]
[422433903,1778945440000,-2082.01435369,0.00026012,2]
[422433912,1778945440000,-1223.0,0.0002667,2]
[422433906,1778945440000,-345.8417215,0.00026397,2]
[422433911,1778945440000,-80162.3179342,0.00026645,2]
[422433902,1778945440000,-550.0,0.00026,2]
[422433924,1778945441000,-257.589938,0.00021999,14]
[422433929,1778945441000,-891.9241332,0.00027069,2]
[422433927,1778945441000,-2421.0,0.00026541,10]
[422433928,1778945441000,-63245.80328468,0.00027069,2]
[422433926,1778945441000,-697.0,0.00026541,10]
[422433925,1778945441000,-967.0,0.00026541,10]
[422433942,1778945443000,-327.365286,0.000153,2]
[422433941,1778945443000,-660.75094917,0.000153,2]
[422433994,1778945444000,-199.47,0.00027397,2]
[422433981,1778945444000,-287.70547223,0.00027397,2]
[422433978,1778945444000,-152.0,0.00027126,30]
[422433983,1778945444000,-230.56114766,0.00027397,7]
[422433980,1778945444000,-561.0,0.00027137,2]
[422433989,1778945444000,-289.9102584,0.00027397,2]
[422433990,1778945444000,-150.0,0.00027397,2]
[422433985,1778945444000,-249.3158046,0.00027397,30]
[422433988,1778945444000,-150.0,0.00027397,2]
[422433986,1778945444000,-150.0,0.00027397,2]
[422433982,1778945444000,-374.58932769,0.00027397,7]
[422433987,1778945444000,-150.0,0.00027397,2]
[422433984,1778945444000,-150.0,0.00027397,2]
[422433993,1778945444000,-160.0,0.00027397,2]
[422434004,1778945444000,-500.0,0.000278,7]
[422434003,1778945444000,-350.0,0.00027789,2]
[422433992,1778945444000,-1500.0,0.00027397,2]
[422433997,1778945444000,-2079.02,0.00027397,10]
[422433998,1778945444000,-1732.52,0.00027397,10]
[422433996,1778945444000,-1465.21,0.00027397,2]
[422433995,1778945444000,-300.0,0.00027397,2]
[422434001,1778945444000,-350.0,0.00027493,2]
[422434002,1778945444000,-350.0,0.00027648,3]
[422433991,1778945444000,-223.35973867,0.00027397,7]
[422433963,1778945444000,-500.0,0.00027123,2]
[422433952,1778945444000,-1717.0463117,0.00027069,2]
[422433973,1778945444000,-1149.0,0.00027123,2]
[422433999,1778945444000,-1443.76,0.00027397,10]
[422433943,1778945444000,-22623.21016483,0.000153,2]
[422433944,1778945444000,-635.17511247,0.00018654,2]
[422433945,1778945444000,-235.0,0.0002,2]
[422433947,1778945444000,-625.0,0.0002157,2]
[422433948,1778945444000,-625.0,0.0002457,2]
[422433949,1778945444000,-764.96,0.00024929,2]
[422433950,1778945444000,-440943.87424548,0.00027069,2]
[422433951,1778945444000,-2360.0543056,0.00027069,2]
[422433955,1778945444000,-485.0,0.00027069,10]
[422433953,1778945444000,-581.0,0.00027069,10]
[422433954,1778945444000,-2445.0,0.00027069,10]
[422433946,1778945444000,-235.0,0.00021,2]
[422433956,1778945444000,-500.0,0.00027123,2]
[422433957,1778945444000,-500.0,0.00027123,2]
[422433961,1778945444000,-500.0,0.00027123,2]
[422433962,1778945444000,-500.0,0.00027123,2]
[422433969,1778945444000,-520.53619171,0.00027123,2]
[422433958,1778945444000,-500.0,0.00027123,2]
[422433959,1778945444000,-503.46475125,0.00027123,2]
[422433960,1778945444000,-500.0,0.00027123,2]
[422433967,1778945444000,-500.0,0.00027123,2]
[422433971,1778945444000,-1314.0,0.00027123,2]
[422433975,1778945444000,-821.0,0.00027123,2]
[422434000,1778945444000,-150.0,0.00027397,2]
[422433965,1778945444000,-500.0,0.00027123,2]
[422434006,1778945444000,-186.4,0.00028,2]
[422434037,1778945444000,-1540.0,0.00028632,3]
[422434034,1778945444000,-1708.82761,0.00028632,2]
[422434042,1778945444000,-1540.0,0.00028632,3]
[422434036,1778945444000,-1540.0,0.00028632,3]
[422434032,1778945444000,-1708.8276,0.00028632,2]
[422434035,1778945444000,-1540.0,0.00028632,3]
[422434039,1778945444000,-1540.0,0.00028632,3]
[422434040,1778945444000,-1540.0,0.00028632,3]
[422434038,1778945444000,-1540.0,0.00028632,3]
[422434047,1778945444000,-2629.23,0.00028661,7]
[422434054,1778945444000,-2629.71,0.00028693,30]
[422434046,1778945444000,-2629.71,0.00028661,7]
[422434045,1778945444000,-1684.50576064,0.00028632,3]
[422434053,1778945444000,-1227.2,0.00028662,7]
[422434044,1778945444000,-1540.0,0.00028632,3]
[422434049,1778945444000,-469.3,0.00028662,7]
[422434050,1778945444000,-1226.94,0.00028662,7]
[422434052,1778945444000,-469.65,0.00028662,7]
[422434055,1778945444000,-2629.23,0.00028693,30]
[422434043,1778945444000,-1540.0,0.00028632,3]
[422434048,1778945444000,-390.43,0.00028662,7]
[422434056,1778945444000,-390.43,0.00028694,30]
[422434007,1778945444000,-585.8,0.00028267,2]
[422434033,1778945444000,-1708.82761,0.00028632,2]
[422434057,1778945444000,-469.3,0.00028694,30]
[422434051,1778945444000,-392.03,0.00028662,7]
[422434030,1778945444000,-238.6149222,0.00028632,3]
[422434041,1778945444000,-1540.0,0.00028632,3]
[422434016,1778945444000,-350.0,0.00028552,2]
[422434010,1778945444000,-1708.82761,0.0002835,2]
[422434009,1778945444000,-1708.8276,0.0002835,2]
[422434017,1778945444000,-181.42,0.000286,2]
[422434005,1778945444000,-600.0,0.00028,2]
[422434015,1778945444000,-223.35973867,0.00028397,7]
[422434008,1778945444000,-1286.26449263,0.00028287,2]
[422434012,1778945444000,-764.96,0.00028354,2]
[422434013,1778945444000,-374.58932769,0.00028397,7]
[422434011,1778945444000,-1708.8276,0.0002835,2]
[422434022,1778945444000,-2629.23,0.0002863,2]
[422434014,1778945444000,-230.56114766,0.00028397,7]
[422434020,1778945444000,-820.001033,0.000286,2]
[422434031,1778945444000,-511.82160609,0.00028632,2]
[422434028,1778945444000,-1227.2,0.00028631,2]
[422434026,1778945444000,-392.03,0.00028631,2]
[422434029,1778945444000,-151.0,0.00028632,2]
[422434025,1778945444000,-1226.94,0.00028631,2]
[422434024,1778945444000,-469.3,0.00028631,2]
[422434027,1778945444000,-469.65,0.00028631,2]
[422434021,1778945444000,-2629.71,0.0002863,2]
[422434018,1778945444000,-200.0,0.000286,10]
[422434019,1778945444000,-194.168,0.000286,19]
[422434023,1778945444000,-390.43,0.00028631,2]
[422434094,1778945445000,-1226.94,0.00028821,2]
[422434098,1778945445000,-390.43,0.00028852,7]
[422434095,1778945445000,-392.03,0.00028821,2]
[422434092,1778945445000,-390.43,0.00028821,2]
[422434096,1778945445000,-469.65,0.00028821,2]
[422434089,1778945445000,-1227.2,0.00028789,30]
[422434103,1778945445000,-469.65,0.00028852,7]
[422434093,1778945445000,-469.3,0.00028821,2]
[422434104,1778945445000,-1227.2,0.00028852,7]
[422434083,1778945445000,-2629.23,0.00028788,30]
[422434097,1778945445000,-1227.2,0.00028821,2]
[422434099,1778945445000,-469.3,0.00028852,7]
[422434114,1778945445000,-659.54,0.000289,7]
[422434100,1778945445000,-1226.94,0.00028852,7]
[422434102,1778945445000,-392.03,0.00028852,7]
[422434106,1778945445000,-2629.71,0.00028883,30]
[422434108,1778945445000,-390.43,0.00028884,30]
[422434105,1778945445000,-2629.23,0.00028852,7]
[422434107,1778945445000,-2629.23,0.00028883,30]
[422434112,1778945445000,-469.65,0.00028884,30]
[422434109,1778945445000,-469.3,0.00028884,30]
[422434115,1778945445000,-350.0,0.00028908,5]
[422434110,1778945445000,-1226.94,0.00028884,30]
[422434111,1778945445000,-392.03,0.00028884,30]
[422434113,1778945445000,-1227.2,0.00028884,30]
[422434086,1778945445000,-1226.94,0.00028789,30]
[422434101,1778945445000,-2629.71,0.00028852,7]
[422434082,1778945445000,-2629.71,0.00028788,30]
[422434064,1778945445000,-2629.71,0.00028725,2]
[422434081,1778945445000,-150.0,0.00028767,2]
[422434058,1778945445000,-1226.94,0.00028694,30]
[422434059,1778945445000,-392.03,0.00028694,30]
[422434063,1778945445000,-5000.0,0.0002872,2]
[422434116,1778945445000,-2629.71,0.00028915,2]
[422434067,1778945445000,-469.3,0.00028726,2]
[422434062,1778945445000,-300.0,0.000287,10]
[422434061,1778945445000,-1227.2,0.00028694,30]
[422434060,1778945445000,-469.65,0.00028694,30]
[422434065,1778945445000,-2629.23,0.00028725,2]
[422434066,1778945445000,-390.43,0.00028726,2]
[422434069,1778945445000,-392.03,0.00028726,2]
[422434079,1778945445000,-469.65,0.00028757,7]
[422434070,1778945445000,-469.65,0.00028726,2]
[422434068,1778945445000,-1226.94,0.00028726,2]
[422434073,1778945445000,-2629.71,0.00028756,7]
[422434071,1778945445000,-1227.2,0.00028726,2]
[422434075,1778945445000,-390.43,0.00028757,7]
[422434076,1778945445000,-469.3,0.00028757,7]
[422434077,1778945445000,-1226.94,0.00028757,7]
[422434072,1778945445000,-350.0,0.00028731,2]
[422434078,1778945445000,-392.03,0.00028757,7]
[422434080,1778945445000,-1227.2,0.00028757,7]
[422434085,1778945445000,-469.3,0.00028789,30]
[422434084,1778945445000,-390.43,0.00028789,30]
[422434090,1778945445000,-2629.71,0.0002882,2]
[422434088,1778945445000,-469.65,0.00028789,30]
[422434087,1778945445000,-392.03,0.00028789,30]
[422434091,1778945445000,-2629.23,0.0002882,2]
[422434117,1778945445000,-2629.23,0.00028915,2]
[422434074,1778945445000,-2629.23,0.00028756,7]
[422434123,1778945445000,-1227.2,0.00028916,2]
[422434153,1778945445000,-392.03,0.00029042,7]
[422434147,1778945445000,-1227.2,0.00029011,2]
[422434148,1778945445000,-350.0,0.00029018,2]
[422434149,1778945445000,-390.43,0.00029042,7]
[422434156,1778945445000,-2629.23,0.00029042,7]
[422434157,1778945445000,-390.43,0.00029074,30]
[422434155,1778945445000,-1227.2,0.00029042,7]
[422434166,1778945445000,-1000.0,0.000291,2]
[422434159,1778945445000,-1226.94,0.00029074,30]
[422434158,1778945445000,-469.3,0.00029074,30]
[422434161,1778945445000,-392.03,0.00029074,30]
[422434160,1778945445000,-2629.71,0.00029074,30]
[422434162,1778945445000,-469.65,0.00029074,30]
[422434164,1778945445000,-2629.23,0.00029074,30]
[422434165,1778945445000,-350.0,0.00029086,2]
[422434163,1778945445000,-1227.2,0.00029074,30]
[422434168,1778945445000,-308.0,0.000291,2]
[422434171,1778945445000,-390.43,0.00029106,2]
[422434170,1778945445000,-2629.23,0.00029105,2]
[422434172,1778945445000,-469.3,0.00029106,2]
[422434167,1778945445000,-314.0,0.000291,2]
[422434169,1778945445000,-2629.71,0.00029105,2]
[422434174,1778945445000,-392.03,0.00029106,2]
[422434173,1778945445000,-1226.94,0.00029106,2]
[422434175,1778945445000,-469.65,0.00029106,2]
[422434176,1778945445000,-1227.2,0.00029106,2]
[422434122,1778945445000,-469.65,0.00028916,2]
[422434152,1778945445000,-2629.71,0.00029042,7]
[422434146,1778945445000,-469.65,0.00029011,2]
[422434177,1778945445000,-158.62885018,0.0002913,7]
[422434144,1778945445000,-1226.94,0.00029011,2]
[422434154,1778945445000,-469.65,0.00029042,7]
[422434124,1778945445000,-390.43,0.00028947,7]
[422434127,1778945445000,-2629.71,0.00028947,7]
[422434126,1778945445000,-1226.94,0.00028947,7]
[422434118,1778945445000,-390.43,0.00028916,2]
[422434128,1778945445000,-392.03,0.00028947,7]
[422434119,1778945445000,-469.3,0.00028916,2]
[422434121,1778945445000,-392.03,0.00028916,2]
[422434125,1778945445000,-469.3,0.00028947,7]
[422434129,1778945445000,-469.65,0.00028947,7]
[422434131,1778945445000,-2629.23,0.00028947,7]
[422434132,1778945445000,-390.43,0.00028979,30]
[422434133,1778945445000,-469.3,0.00028979,30]
[422434120,1778945445000,-1226.94,0.00028916,2]
[422434141,1778945445000,-2629.23,0.0002901,2]
[422434150,1778945445000,-469.3,0.00029042,7]
[422434130,1778945445000,-1227.2,0.00028947,7]
[422434145,1778945445000,-392.03,0.00029011,2]
[422434142,1778945445000,-390.43,0.00029011,2]
[422434151,1778945445000,-1226.94,0.00029042,7]
[422434138,1778945445000,-1227.2,0.00028979,30]
[422434143,1778945445000,-469.3,0.00029011,2]
[422434136,1778945445000,-392.03,0.00028979,30]
[422434137,1778945445000,-469.65,0.00028979,30]
[422434135,1778945445000,-2629.71,0.00028979,30]
[422434139,1778945445000,-2629.23,0.00028979,30]
[422434140,1778945445000,-2629.71,0.0002901,2]
[422434134,1778945445000,-1226.94,0.00028979,30]
[422434215,1778945446000,-2629.71,0.00029201,2]
[422434211,1778945446000,-151.77959964,0.00029177,7]
[422434217,1778945446000,-469.65,0.00029201,2]
[422434213,1778945446000,-469.3,0.00029201,2]
[422434210,1778945446000,-151.43604716,0.00029177,7]
[422434214,1778945446000,-1226.94,0.00029201,2]
[422434216,1778945446000,-392.03,0.00029201,2]
[422434212,1778945446000,-390.43,0.00029201,2]
[422434207,1778945446000,-164.07508544,0.00029177,7]
[422434218,1778945446000,-1227.2,0.00029201,2]
[422434220,1778945446000,-321.77186615,0.00029224,30]
[422434235,1778945446000,-1354.0,0.0002967,2]
[422434230,1778945446000,-4237.38643722,0.00029515,2]
[422434219,1778945446000,-2629.23,0.00029201,2]
[422434227,1778945446000,-1227.35,0.00029232,7]
[422434228,1778945446000,-350.0,0.00029316,5]
[422434223,1778945446000,-1227.13,0.00029232,7]
[422434229,1778945446000,-1132.3489621,0.000295,2]
[422434226,1778945446000,-469.75,0.00029232,7]
[422434222,1778945446000,-469.32,0.00029232,7]
[422434221,1778945446000,-390.46,0.00029232,7]
[422434225,1778945446000,-392.15,0.00029232,7]
[422434224,1778945446000,-2629.72,0.00029232,7]
[422434232,1778945446000,-1270.0,0.0002967,2]
[422434208,1778945446000,-192.73907935,0.00029177,7]
[422434231,1778945446000,-150.0,0.00029534,2]
[422434209,1778945446000,-157.04115983,0.00029177,7]
[422434199,1778945446000,-203.90191621,0.00029177,2]
[422434203,1778945446000,-152.06893866,0.00029177,7]
[422434236,1778945446000,-3543.0,0.0002967,2]
[422434179,1778945446000,-200.0,0.00029137,2]
[422434189,1778945446000,-390.43,0.00029169,30]
[422434178,1778945446000,-222.98105363,0.0002913,7]
[422434185,1778945446000,-392.03,0.00029137,7]
[422434182,1778945446000,-469.3,0.00029137,7]
[422434187,1778945446000,-1227.2,0.00029137,7]
[422434183,1778945446000,-1226.94,0.00029137,7]
[422434180,1778945446000,-200.38022994,0.00029137,2]
[422434188,1778945446000,-2629.23,0.00029137,7]
[422434181,1778945446000,-390.43,0.00029137,7]
[422434186,1778945446000,-469.65,0.00029137,7]
[422434184,1778945446000,-2629.71,0.00029137,7]
[422434201,1778945446000,-175.61409358,0.00029177,7]
[422434191,1778945446000,-1226.94,0.00029169,30]
[422434200,1778945446000,-154.37207813,0.00029177,7]
[422434190,1778945446000,-469.3,0.00029169,30]
[422434195,1778945446000,-1227.2,0.00029169,30]
[422434193,1778945446000,-392.03,0.00029169,30]
[422434192,1778945446000,-2629.71,0.00029169,30]
[422434194,1778945446000,-469.65,0.00029169,30]
[422434198,1778945446000,-204.38162208,0.00029177,7]
[422434196,1778945446000,-2629.23,0.00029169,30]
[422434197,1778945446000,-159.57000213,0.00029177,7]
[422434202,1778945446000,-171.26426848,0.00029177,7]
[422434204,1778945446000,-151.97155074,0.00029177,7]
[422434205,1778945446000,-151.62352203,0.00029177,7]
[422434206,1778945446000,-152.0469411,0.00029177,7]
[422434238,1778945446000,-659.54,0.000298,7]
[422434254,1778945446000,-324.04055469,0.00029999,2]
[422434237,1778945446000,-905.98845255,0.000298,2]
[422434266,1778945446000,-462.42627372,0.00029999,2]
[422434268,1778945446000,-615.30228299,0.00029999,2]
[422434273,1778945446000,-615.30228299,0.00029999,2]
[422434283,1778945446000,-615.30228299,0.00029999,2]
[422434284,1778945446000,-615.30228299,0.00029999,2]
[422434272,1778945446000,-615.30228299,0.00029999,2]
[422434275,1778945446000,-615.30228299,0.00029999,2]
[422434274,1778945446000,-615.30228299,0.00029999,2]
[422434277,1778945446000,-615.30228299,0.00029999,2]
[422434240,1778945446000,-150.98,0.000299,7]
[422434276,1778945446000,-615.30228299,0.00029999,2]
[422434280,1778945446000,-615.30228299,0.00029999,2]
[422434264,1778945446000,-500.0,0.00029999,2]
[422434281,1778945446000,-615.30228299,0.00029999,2]
[422434279,1778945446000,-615.30228299,0.00029999,2]
[422434286,1778945446000,-615.30228299,0.00029999,2]
[422434285,1778945446000,-615.30228299,0.00029999,2]
[422434287,1778945446000,-615.30228299,0.00029999,2]
[422434288,1778945446000,-615.30228299,0.00029999,2]
[422434291,1778945446000,-615.30228299,0.00029999,2]
[422434292,1778945446000,-615.30228299,0.00029999,2]
[422434290,1778945446000,-615.30228299,0.00029999,2]
[422434294,1778945446000,-615.30228299,0.00029999,2]
[422434295,1778945446000,-615.30228299,0.00029999,2]
[422434289,1778945446000,-615.30228299,0.00029999,2]
[422434293,1778945446000,-615.30228299,0.00029999,2]
[422434282,1778945446000,-615.30228299,0.00029999,2]
[422434269,1778945446000,-615.30228299,0.00029999,2]
[422434278,1778945446000,-615.30228299,0.00029999,2]
[422434271,1778945446000,-615.30228299,0.00029999,2]
[422434239,1778945446000,-80085.82010866,0.000299,2]
[422434265,1778945446000,-615.30228299,0.00029999,2]
[422434243,1778945446000,-159.14153599,0.00029902,2]
[422434241,1778945446000,-1119.6,0.000299,7]
[422434245,1778945446000,-240.78340779,0.0002999,2]
[422434242,1778945446000,-150.0,0.000299,2]
[422434244,1778945446000,-350.0,0.00029974,4]
[422434257,1778945446000,-500.0,0.00029999,2]
[422434247,1778945446000,-151.29889973,0.00029997,2]
[422434246,1778945446000,-252.10964833,0.00029997,2]
[422434248,1778945446000,-500.0,0.00029999,2]
[422434251,1778945446000,-615.30228299,0.00029999,2]
[422434253,1778945446000,-615.30228299,0.00029999,2]
[422434233,1778945446000,-1223.0,0.0002967,2]
[422434250,1778945446000,-500.0,0.00029999,2]
[422434249,1778945446000,-500.0,0.00029999,2]
[422434263,1778945446000,-615.30228299,0.00029999,2]
[422434261,1778945446000,-500.0,0.00029999,2]
[422434262,1778945446000,-615.30228299,0.00029999,2]
[422434270,1778945446000,-615.30228299,0.00029999,2]
[422434267,1778945446000,-615.30228299,0.00029999,2]
[422434259,1778945446000,-615.30228299,0.00029999,2]
[422434258,1778945446000,-615.30228299,0.00029999,2]
[422434252,1778945446000,-505.86265135,0.00029999,2]
[422434256,1778945446000,-615.30228299,0.00029999,2]
[422434255,1778945446000,-500.0,0.00029999,2]
[422434260,1778945446000,-615.30228299,0.00029999,2]
[422434328,1778945447000,-893.13042611,0.00029999,2]
[422434325,1778945447000,-893.13042611,0.00029999,2]
[422434324,1778945447000,-893.13042611,0.00029999,2]
[422434335,1778945447000,-893.13042611,0.00029999,2]
[422434322,1778945447000,-893.13042611,0.00029999,2]
[422434334,1778945447000,-893.13042611,0.00029999,2]
[422434333,1778945447000,-893.13042611,0.00029999,2]
[422434323,1778945447000,-893.13042611,0.00029999,2]
[422434330,1778945447000,-893.13042611,0.00029999,2]
[422434326,1778945447000,-893.13042611,0.00029999,2]
[422434327,1778945447000,-893.13042611,0.00029999,2]
[422434347,1778945447000,-20173.47702989,0.0003,2]
[422434331,1778945447000,-893.13042611,0.00029999,2]
[422434329,1778945447000,-893.13042611,0.00029999,2]
[422434336,1778945447000,-902.06173036,0.00029999,2]
[422434338,1778945447000,-902.06173036,0.00029999,2]
[422434348,1778945447000,-87877.0,0.0003,2]
[422434340,1778945447000,-902.06173036,0.00029999,2]
[422434339,1778945447000,-902.06173036,0.00029999,2]
[422434342,1778945447000,-902.06173036,0.00029999,2]
[422434337,1778945447000,-902.06173036,0.00029999,2]
[422434319,1778945447000,-893.13042611,0.00029999,2]
[422434332,1778945447000,-893.13042611,0.00029999,2]
[422434320,1778945447000,-893.13042611,0.00029999,2]
[422434341,1778945447000,-902.06173036,0.00029999,2]
[422434313,1778945447000,-893.13042611,0.00029999,2]
[422434296,1778945447000,-615.30228299,0.00029999,2]
[422434308,1778945447000,-893.13042611,0.00029999,2]
[422434298,1778945447000,-615.30228299,0.00029999,2]
[422434301,1778945447000,-615.30228299,0.00029999,2]
[422434299,1778945447000,-615.30228299,0.00029999,2]
[422434302,1778945447000,-615.30228299,0.00029999,2]
[422434304,1778945447000,-615.30228299,0.00029999,2]
[422434306,1778945447000,-893.13042611,0.00029999,2]
[422434305,1778945447000,-893.13042611,0.00029999,2]
[422434309,1778945447000,-893.13042611,0.00029999,2]
[422434314,1778945447000,-893.13042611,0.00029999,2]
[422434297,1778945447000,-615.30228299,0.00029999,2]
[422434303,1778945447000,-615.30228299,0.00029999,2]
[422434307,1778945447000,-893.13042611,0.00029999,2]
[422434310,1778945447000,-893.13042611,0.00029999,2]
[422434311,1778945447000,-893.13042611,0.00029999,2]
[422434317,1778945447000,-893.13042611,0.00029999,2]
[422434315,1778945447000,-893.13042611,0.00029999,2]
[422434316,1778945447000,-893.13042611,0.00029999,2]
[422434321,1778945447000,-893.13042611,0.00029999,2]
[422434318,1778945447000,-893.13042611,0.00029999,2]
[422434312,1778945447000,-893.13042611,0.00029999,2]
[422434300,1778945447000,-615.30228299,0.00029999,2]
[422434343,1778945447000,-902.06173036,0.00029999,2]
[422434354,1778945447000,-500.0,0.0003,2]
[422434346,1778945447000,-5000.0,0.0003,60]
[422434368,1778945447000,-229.0,0.0003,60]
[422434379,1778945447000,-150.35093008,0.00030037,2]
[422434381,1778945447000,-705.09034753,0.000301,2]
[422434380,1778945447000,-350.0,0.00030097,3]
[422434382,1778945447000,-705.09034751,0.000301,2]
[422434383,1778945447000,-705.09034751,0.000301,2]
[422434384,1778945447000,-235.0,0.00030107,30]
[422434378,1778945447000,-150.0,0.00030037,2]
[422434386,1778945447000,-500.61920959,0.00030129,10]
[422434387,1778945447000,-13437.57060765,0.0003013,2]
[422434385,1778945447000,-1286.26449263,0.00030117,2]
[422434388,1778945447000,-644.02083613,0.0003013,2]
[422434389,1778945447000,-204.87809574,0.0003013,2]
[422434390,1778945447000,-507771.83431995,0.0003013,7]
[422434391,1778945447000,-25927.71931064,0.0003013,7]
[422434392,1778945447000,-235.0,0.00022,2]
[422434394,1778945447000,-1203.14,0.00027397,10]
[422434396,1778945447000,-561.0,0.00027671,2]
[422434393,1778945447000,-235.0,0.00023,2]
[422434397,1778945447000,-4860.16760606,0.00028187,2]
[422434395,1778945447000,-625.0,0.0002757,2]
[422434365,1778945447000,-650.0,0.0003,2]
[422434363,1778945447000,-884.94274319,0.0003,14]
[422434377,1778945447000,-150.0,0.00030037,2]
[422434375,1778945447000,-1039.00573888,0.0003003,2]
[422434345,1778945447000,-902.06173036,0.00029999,2]
[422434349,1778945447000,-366.99796987,0.0003,30]
[422434360,1778945447000,-4000.0,0.0003,2]
[422434350,1778945447000,-2000.0,0.0003,3]
[422434361,1778945447000,-200.0,0.0003,2]
[422434355,1778945447000,-165.50451266,0.0003,2]
[422434359,1778945447000,-200.0,0.0003,2]
[422434356,1778945447000,-8711.10912308,0.0003,2]
[422434371,1778945447000,-2240.97683558,0.0003003,2]
[422434352,1778945447000,-1845.43543071,0.0003,2]
[422434351,1778945447000,-1120.81172684,0.0003,2]
[422434357,1778945447000,-5194.9536011,0.0003,2]
[422434398,1778945447000,-403.23446449,0.00028187,2]
[422434364,1778945447000,-200.0,0.0003,2]
[422434358,1778945447000,-200.0,0.0003,2]
[422434362,1778945447000,-200.0,0.0003,2]
[422434369,1778945447000,-11064.80680074,0.0003003,2]
[422434370,1778945447000,-180.28390512,0.0003003,2]
[422434376,1778945447000,-150.0,0.00030037,2]
[422434373,1778945447000,-199.84050573,0.0003003,2]
[422434367,1778945447000,-250.0,0.0003,60]
[422434353,1778945447000,-586.00767141,0.0003,4]
[422434366,1778945447000,-250.0,0.0003,60]
[422434344,1778945447000,-902.06173036,0.00029999,2]
[422434399,1778945470000,-237.99,0.00016438,2]
[422434400,1778945485000,-756.065,0.000153,2]
[422434401,1778945542000,377.436377,0.00029527,120]
[422434402,1778945563000,500.0,0.0003013,120]
[422434404,1778945577000,500.0,0.00028632,120]
[422434403,1778945577000,1155.696151,0.00028181,120]
[422434405,1778945578000,930.0,0.00028632,120]
[422434406,1778945591000,161.94,0.00030136,120]
[422434407,1778945597000,369.37395,0.00028156,120]
[422434408,1778945617000,324.251749,0.0002699,120]
[422434409,1778945642000,184.686975,0.0002643,120]
[422434410,1778945655000,162.125875,0.0002643,120]
[422434413,1778945665000,-66.18278814,0.00011725,2]
[422434411,1778945665000,-160.93,0.00010107,2]
[422434412,1778945665000,-160.93,0.00010916,2]
[422434414,1778945689000,3209.25,0.0003,120]
[422434415,1778945709000,2000.0,0.00028619,120]
[422434416,1778945789000,268.286606,0.00024186,120]
[422434417,1778945916000,299.59,0.00027892,120]
[422434419,1778945995000,-69.19725653,0.00012535,2]
[422434418,1778945995000,-94.74721186,0.00011725,2]
[422434420,1778946109000,533.019,0.00030137,120]
[422434422,1778946325000,-91.73274347,0.00012535,2]
[422434423,1778946325000,-68.19725653,0.00013165,2]
[422434424,1778946396000,350.0,0.00026988,120]
[422434425,1778946397000,350.0,0.00026988,120]
[422434426,1778946398000,228.0,0.00026988,120]
[422434427,1778946411000,161.0,0.00026714,120]
[422434428,1778946423000,151.58,9.757e-05,2]
[422434431,1778946430000,-18.3481704,0.00011515,2]
[422434430,1778946430000,-151.58,0.00010929,2]
[422434429,1778946430000,-151.58,0.00010343,2]
[422434432,1778946524000,226.82,0.00012397,7]
[422434433,1778946535000,-133.2318296,0.00011515,2]
[422434435,1778946535000,-200.0,0.00012397,2]
[422434436,1778946535000,-151.58,0.00012687,2]
[422434437,1778946535000,-288.92,0.00013015,2]
[422434434,1778946535000,-151.58,0.00012101,2]
[422434464,1778946631000,-732.6,0.00013654,2]
[422434461,1778946631000,-163.0,0.000134,2]
[422434470,1778946631000,-9999.99,0.00013699,2]
[422434462,1778946631000,-534.49,0.00013469,2]
[422434459,1778946631000,-151.58,0.00013273,2]